fUSD/lending_fUSD_20260109
["ID","MTS","AMOUNT","RATE_DAILY","PERIOD"]
[401101294,1767929442871,-1000.0,0.00016515,2]
[401101295,1767929442881,-166.66,0.00016598,2]
[401101296,1767929442890,-359.61007335,0.000166,2]
[401101297,1767929442899,-482.82,0.00016641,2]
[401101298,1767929442908,-588.84,0.00016712,2]
[401101299,1767929442917,-791.3,0.00016712,2]
[401101300,1767929442926,-469.60768673,0.00016742,2]
[401101301,1767929442935,-16740.34959736,0.00016777,2]
[401101302,1767929442944,-2192.09587896,0.00016787,2]
[401101303,1767929442953,-5977.60630752,0.00016787,2]
[401101304,1767929442962,-433.0,0.0001689,2]
[401101305,1767929442971,-162.0,0.000169,2]
[401101306,1767929442980,-162.0,0.000169,2]
[401101307,1767929442989,-500.0,0.00016921,2]
[401101308,1767929442998,-157.78803463,0.00016947,2]
[401101309,1767929443007,-500.0,0.00016986,2]
[401101310,1767929443016,-500.0,0.00016986,2]
[401101311,1767929443025,-500.0,0.00016986,2]
[401101312,1767929443034,-588.84,0.00016986,2]
[401101313,1767929443043,-791.3,0.00016986,2]
[401101314,1767929443052,-2000.61975215,0.00016989,2]
[401101315,1767929443061,-250.0,0.00017,2]
[401101316,1767929443070,-419.81,0.00017,2]
[401101317,1767929443079,-160.0,0.00017,2]
[401101318,1767929443088,-482.82,0.00017041,2]
[401101319,1767929443097,-482.82,0.00017041,2]
[401101320,1767929443106,-2674.52594788,0.00017099,2]
[401101321,1767929443115,-3992.76860017,0.00017099,2]
[401101322,1767929443124,-1247.59056919,0.00017099,2]
[401101323,1767929443133,-578.20924308,0.00017099,2]
[401101324,1767929443142,-1500.0,0.00017099,2]
[401101325,1767929443151,-500.0,0.00017099,2]
[401101326,1767929443160,-1500.0,0.00017099,2]
[401101327,1767929443169,-500.0,0.00017099,2]
[401101328,1767929443178,-1500.0,0.00017099,2]
[401101329,1767929443187,-500.0,0.00017099,2]
[401101330,1767929443196,-1500.0,0.00017099,2]
[401101331,1767929443205,-500.0,0.00017099,2]
[401101332,1767929443215,-1500.0,0.00017099,2]
[401101333,1767929443224,-500.0,0.00017099,2]
[401101334,1767929443235,-1500.0,0.00017099,2]
[401101335,1767929443244,-500.0,0.00017099,2]
[401101336,1767929443253,-1500.0,0.00017099,2]
[401101337,1767929443262,-500.0,0.00017099,2]
[401101338,1767929443271,-621.78361711,0.00017099,2]
[401101339,1767929443280,-500.0,0.00017099,2]
[401101340,1767929443289,-500.0,0.00017099,2]
[401101341,1767929443298,-500.0,0.00017099,2]
[401101342,1767929443307,-353.83614123,0.00017099,2]
[401101343,1767929443317,-151.0,0.00017099,2]
[401101344,1767929443326,-817.14196005,0.00017099,2]
[401101345,1767929443335,-2000.0,0.00017099,2]
[401101346,1767929443344,-2000.0,0.00017099,2]
[401101347,1767929443354,-620.0,0.00017099,2]
[401101348,1767929443365,-1628.02313146,0.00017099,2]
[401101349,1767929443376,-553.64373807,0.00017099,2]
[401101350,1767929443385,-322.6107,0.00017099,2]
[401101351,1767929443395,-1771.03382657,0.00017099,2]
[401101352,1767929443405,-500.0,0.00017099,2]
[401101353,1767929443415,-500.0,0.00017099,2]
[401101354,1767929443426,-500.0,0.00017099,2]
[401101355,1767929443436,-500.0,0.00017099,2]
[401101356,1767929443446,-500.0,0.00017099,2]
[401101357,1767929443456,-264.02807282,0.00017099,2]
[401101358,1767929443466,-500.0,0.00017099,2]
[401101359,1767929443474,-500.0,0.00017099,2]
[401101360,1767929443484,-500.0,0.00017099,2]
[401101361,1767929443494,-250.0,0.00017099,2]
[401101362,1767929443502,-500.0,0.00017099,2]
[401101363,1767929443511,-250.0,0.00017099,2]
[401101364,1767929443520,-500.0,0.00017099,2]
[401101365,1767929443529,-250.0,0.00017099,2]
[401101366,1767929443538,-500.0,0.00017099,2]
[401101367,1767929443547,-250.0,0.00017099,2]
[401101368,1767929443556,-481.23946277,0.00017099,2]
[401101369,1767929443566,-250.0,0.00017099,2]
[401101370,1767929443575,-250.0,0.00017099,2]
[401101371,1767929443584,-250.0,0.00017099,2]
[401101372,1767929443594,-270.69457066,0.00017099,2]
[401101373,1767929443604,-334.5472959,0.00017099,2]
[401101374,1767929443613,-1000.0,0.00017112,2]
[401101375,1767929443622,-2192.09587896,0.00017158,2]
[401101376,1767929443632,-5977.60630752,0.00017158,2]
[401101377,1767929443642,-1224.84,0.00017178,2]
[401101378,1767929443652,-361.26,0.00017178,2]
[401101379,1767929443663,-155.79,0.00017178,2]
[401101380,1767929443672,-588.84,0.0001726,2]
[401101381,1767929443682,-791.3,0.0001726,2]
[401101382,1767929443692,-2210.0,0.00017293,2]
[401101383,1767929443701,-357.05333065,0.00017392,2]
[401101384,1767929443710,-1000.0,0.000174,2]
[401101385,1767929443719,-2210.0,0.00017402,2]
[401101386,1767929443729,-280.55226309,0.00017434,2]
[401101387,1767929443738,-1601.1452557,0.000175,2]
[401101388,1767929443747,-2192.09587896,0.00017529,2]
[401101389,1767929443757,-5977.60630752,0.00017529,2]
[401101390,1767929443766,-588.84,0.00017534,2]
[401101391,1767929443774,-791.3,0.00017534,2]
[401101392,1767929443784,-1000.0,0.000176,2]
[401101393,1767929443793,-2210.0,0.00017604,2]
[401101394,1767929443802,-2351.0,0.00017618,2]
[401101395,1767929443811,-1741.98050018,0.0001764,2]
[401101397,1767929443822,-151.0,0.00017647,2]
[401101398,1767929443832,-574.12855637,0.00017647,2]
[401101399,1767929443842,-346.92554585,0.00017647,2]
[401101400,1767929443851,-779.93594743,0.000177,2]
[401101401,1767929443860,-1000.0,0.00017709,2]
[401101402,1767929443869,-2210.0,0.00017742,2]
[401101403,1767929443878,-482.72,0.00017768,2]
[401101404,1767929443887,-2000.0,0.000178,2]
[401101405,1767929443896,-43709.14658721,0.000178,2]
[401101406,1767929443905,-1000.0,0.000178,2]
[401101407,1767929443914,-250.0,0.00017805,2]
[401101408,1767929443923,-5800.0,0.00017806,2]
[401101409,1767929443932,-588.85979464,0.00017808,2]
[401101410,1767929443941,-791.3,0.00017808,2]
[401101411,1767929443950,-5800.0,0.00017815,2]
[401101412,1767929443960,-5800.0,0.00017823,2]
[401101413,1767929443969,-5800.0,0.00017832,2]
[401101414,1767929443978,-5800.0,0.00017841,2]
[401101415,1767929443987,-5800.0,0.00017849,2]
[401101416,1767929443997,-200.0,0.00017855,2]
[401101417,1767929444006,-2000.0,0.00017856,2]
[401101418,1767929444015,-200.0,0.00017856,2]
[401101419,1767929444024,-200.0,0.00017856,2]
[401101420,1767929444033,-5800.0,0.00017858,2]
[401101421,1767929444042,-5800.0,0.00017866,2]
[401101422,1767929444051,-5800.0,0.00017874,2]
[401101423,1767929444060,-2210.0,0.00017879,2]
[401101424,1767929444069,-5800.0,0.00017883,2]
[401101425,1767929444078,-5800.0,0.00017891,2]
[401101426,1767929444087,-1052.30784804,0.00017895,2]
[401101427,1767929444096,-1052.30784804,0.00017896,2]
[401101428,1767929444105,-1052.30784804,0.00017897,2]
[401101429,1767929444116,-1052.30784804,0.00017898,2]
[401101430,1767929444126,-1052.30784804,0.00017899,2]
[401101431,1767929444136,-162.0,0.000179,5]
[401101432,1767929444144,-162.0,0.000179,4]
[401101433,1767929444153,-162.0,0.000179,3]
[401101434,1767929444162,-33584.3474,0.000179,2]
[401101435,1767929444171,-1000.0,0.000179,2]
[401101436,1767929444180,-162.0,0.000179,2]
[401101437,1767929444189,-162.0,0.000179,2]
[401101438,1767929444198,-168.6,0.000179,2]
[401101439,1767929444207,-10000.0,0.000179,2]
[401101440,1767929444216,-5800.0,0.000179,2]
[401101441,1767929444225,-2192.09587896,0.000179,2]
[401101442,1767929444234,-5977.60630752,0.000179,2]
[401101443,1767929444244,-2806.06348518,0.000179,2]
[401101444,1767929444253,-165.2445396,0.000179,2]
[401101445,1767929444263,-1722.70176245,0.000179,2]
[401101446,1767929444272,-500.0,0.000179,2]
[401101447,1767929444282,-500.0,0.000179,2]
[401101448,1767929444291,-500.0,0.000179,2]
[401101449,1767929444300,-500.0,0.000179,2]
[401101450,1767929444310,-500.0,0.000179,2]
[401101451,1767929444319,-500.0,0.000179,2]
[401101452,1767929444328,-500.0,0.000179,2]
[401101453,1767929444337,-500.0,0.000179,2]
[401101454,1767929444346,-500.0,0.000179,2]
[401101455,1767929444356,-500.0,0.000179,2]
[401101456,1767929444369,-500.0,0.000179,2]
[401101457,1767929444378,-500.0,0.000179,2]
[401101458,1767929444388,-500.0,0.000179,2]
[401101459,1767929444396,-500.0,0.000179,2]
[401101460,1767929444406,-500.0,0.000179,2]
[401101461,1767929444415,-500.0,0.000179,2]
[401101462,1767929444424,-500.0,0.000179,2]
[401101463,1767929444433,-500.0,0.000179,2]
[401101464,1767929444442,-500.0,0.000179,2]
[401101465,1767929444453,-500.0,0.000179,2]
[401101466,1767929444464,-11351.0,0.000179,2]
[401101467,1767929444473,-5888.0,0.0001792,2]
[401101468,1767929444482,-152.0,0.00017954,3]
[401101469,1767929444491,-500.0,0.00017973,2]
[401101470,1767929444500,-500.0,0.00017973,2]
[401101471,1767929444509,-500.0,0.00017973,2]
[401101472,1767929444519,-500.0,0.00017973,2]
[401101473,1767929444527,-500.0,0.00017973,2]
[401101474,1767929444537,-501.26195682,0.00017973,2]
[401101475,1767929444545,-500.0,0.00017973,2]
[401101476,1767929444554,-500.0,0.00017973,2]
[401101477,1767929444563,-372.6640454,0.00017973,2]
[401101478,1767929444573,-506.42241375,0.00017973,2]
[401101479,1767929444581,-500.0,0.00017973,2]
[401101480,1767929444590,-166.05644704,0.00017973,2]
[401101481,1767929444599,-500.51815801,0.00017973,2]
[401101482,1767929444609,-507.65773125,0.00017973,2]
[401101483,1767929444618,-165.3256661,0.00017973,2]
[401101484,1767929444627,-500.78697171,0.00017973,2]
[401101486,1767929444636,-500.0,0.00017973,2]
[401101488,1767929444645,-625.00819918,0.00017973,2]
[401101489,1767929444654,-179.20096908,0.00017973,2]
[401101490,1767929444663,-500.0,0.00017973,2]
[401101491,1767929444672,-169.10832564,0.00017973,2]
[401101492,1767929444681,-500.0,0.00017973,2]
[401101493,1767929444690,-500.0,0.00017973,2]
[401101494,1767929444699,-160.6645308,0.00017973,2]
[401101495,1767929444708,-500.0,0.00017973,2]
[401101496,1767929444717,-500.36206432,0.00017973,2]
[401101497,1767929444726,-500.0,0.00017973,2]
[401101498,1767929444735,-283.43561146,0.00017973,2]
[401101499,1767929444745,-500.24048348,0.00017973,2]
[401101500,1767929444754,-500.0,0.00017973,2]
[401101501,1767929444763,-375.44031674,0.00017973,2]
[401101502,1767929444772,-500.0,0.00017973,2]
[401101503,1767929444781,-500.0,0.00017973,2]
[401101504,1767929444790,-602.31786917,0.00017973,2]
[401101505,1767929444799,-500.0,0.00017973,2]
[401101506,1767929444807,-150.0,0.00017973,2]
[401101507,1767929444816,-276.0,0.00017981,2]
[401101508,1767929444825,-219.52249285,0.00017982,2]
[401101509,1767929444834,-500.0,0.00017982,2]
[401101510,1767929444844,-1111.94,0.0001799,2]
[401101511,1767929444853,-150.0,0.0001799,2]
[401101512,1767929444862,-206.86777706,0.0001799,2]
[401101513,1767929444871,-19486.9421769,0.00017993,2]
[401101514,1767929444881,-71402.3892259,0.00017993,2]
[401101515,1767929445124,-500.0,0.00017994,2]
[401101516,1767929445133,-500.0,0.00017994,2]
[401101517,1767929445144,-500.0,0.00017994,2]
[401101518,1767929445153,-695633.1273234,0.00017995,2]
[401101519,1767929445163,-16751.906184,0.00017995,2]
[401101520,1767929445173,-4322.030916,0.00017995,2]
[401101521,1767929445182,-397.11913,0.00017995,2]
[401101522,1767929445192,-397.11913,0.00017995,2]
[401101523,1767929445202,-397.11913,0.00017995,2]
[401101524,1767929445211,-151.0,0.00017995,2]
[401101525,1767929445221,-397.11913,0.00017995,2]
[401101526,1767929445231,-205.051786,0.00017995,2]
[401101527,1767929445241,-164.028643,0.00017995,2]
[401101528,1767929445251,-164.028643,0.00017995,2]
[401101529,1767929445260,-238.68837173,0.00017995,2]
[401101530,1767929445270,-151.0,0.00017995,2]
[401101531,1767929445279,-164.028643,0.00017995,2]
[401101532,1767929445288,-175.825959,0.00017995,2]
[401101533,1767929445299,-164.028643,0.00017995,2]
[401101534,1767929445308,-175.825959,0.00017995,2]
[401101535,1767929445318,-151.0,0.00017995,2]
[401101536,1767929445327,-175.825959,0.00017995,2]
[401101537,1767929445336,-151.0,0.00017995,2]
[401101538,1767929445346,-151.0,0.00017995,2]
[401101539,1767929445355,-151.0,0.00017995,2]
[401101540,1767929445366,-151.0,0.00017995,2]
[401101541,1767929445377,-187.540129,0.00017995,2]
[401101542,1767929445386,-151.0,0.00017995,2]
[401101543,1767929445396,-151.0,0.00017995,2]
[401101544,1767929445407,-151.0,0.00017995,2]
[401101545,1767929445417,-175.825959,0.00017995,2]
[401101546,1767929445426,-151.0,0.00017995,2]
[401101547,1767929445437,-210.06325,0.00017995,2]
[401101548,1767929445446,-151.0,0.00017995,2]
[401101549,1767929445456,-151.0,0.00017995,2]
[401101550,1767929445466,-151.0,0.00017995,2]
[401101551,1767929445475,-151.0,0.00017995,2]
[401101552,1767929445484,-151.0,0.00017995,2]
[401101553,1767929445494,-151.0,0.00017995,2]
[401101554,1767929445503,-151.0,0.00017995,2]
[401101555,1767929445512,-151.0,0.00017995,2]
[401101556,1767929445522,-151.0,0.00017995,2]
[401101557,1767929445531,-151.0,0.00017995,2]
[401101558,1767929445541,-151.0,0.00017995,2]
[401101559,1767929445551,-198.491542,0.00017995,2]
[401101560,1767929445560,-198.491542,0.00017995,2]
[401101561,1767929445569,-198.491542,0.00017995,2]
[401101562,1767929445579,-863.057783,0.00017995,2]
[401101563,1767929445589,-192.18303,0.00017995,2]
[401101564,1767929445598,-198.491542,0.00017995,2]
[401101565,1767929445608,-863.057783,0.00017995,2]
[401101566,1767929445617,-863.057783,0.00017995,2]
[401101567,1767929445627,-151.0,0.00017995,2]
[401101568,1767929445637,-863.057783,0.00017995,2]
[401101569,1767929445647,-151.0,0.00017995,2]
[401101570,1767929445658,-151.0,0.00017995,2]
[401101571,1767929445667,-151.0,0.00017995,2]
[401101572,1767929445677,-151.0,0.00017995,2]
[401101573,1767929445686,-151.0,0.00017995,2]
[401101574,1767929445695,-415.268044,0.00017995,2]
[401101575,1767929445705,-1150.718641,0.00017995,2]
[401101576,1767929445714,-151.0,0.00017995,2]
[401101577,1767929445724,-169.303544,0.00017995,2]
[401101578,1767929445733,-1150.718641,0.00017995,2]
[401101579,1767929445742,-151.0,0.00017995,2]
[401101580,1767929445751,-415.268044,0.00017995,2]
[401101581,1767929445760,-371.425842,0.00017995,2]
[401101582,1767929445769,-151.0,0.00017995,2]
[401101583,1767929445779,-1150.718641,0.00017995,2]
[401101584,1767929445787,-415.268044,0.00017995,2]
[401101585,1767929445797,-371.425842,0.00017995,2]
[401101586,1767929445806,-151.0,0.00017995,2]
[401101587,1767929445815,-415.268044,0.00017995,2]
[401101588,1767929445824,-1150.718641,0.00017995,2]
[401101589,1767929445834,-371.425842,0.00017995,2]
[401101590,1767929445843,-151.0,0.00017995,2]
[401101591,1767929445852,-151.0,0.00017995,2]
[401101592,1767929445861,-371.425842,0.00017995,2]
[401101593,1767929445870,-151.0,0.00017995,2]
[401101594,1767929445879,-151.0,0.00017995,2]
[401101595,1767929445888,-151.0,0.00017995,2]
[401101596,1767929445897,-151.0,0.00017995,2]
[401101597,1767929445911,-539.096877,0.00017995,2]
[401101598,1767929445919,-151.0,0.00017995,2]
[401101599,1767929445929,-539.096877,0.00017995,2]
[401101600,1767929445938,-495.519211,0.00017995,2]
[401101601,1767929445948,-2472.961077,0.00017995,2]
[401101602,1767929445957,-539.096877,0.00017995,2]
[401101603,1767929445967,-495.519211,0.00017995,2]
[401101604,1767929445976,-2472.961077,0.00017995,2]
[401101605,1767929445985,-539.096877,0.00017995,2]
[401101606,1767929445994,-2472.961077,0.00017995,2]
[401101607,1767929446003,-495.519211,0.00017995,2]
[401101608,1767929446012,-187.66246,0.00017995,2]
[401101609,1767929446022,-2472.961077,0.00017995,2]
[401101610,1767929446033,-151.0,0.00017995,2]
[401101611,1767929446042,-495.519211,0.00017995,2]
[401101612,1767929446051,-187.66246,0.00017995,2]
[401101613,1767929446060,-187.66246,0.00017995,2]
[401101614,1767929446070,-187.66246,0.00017995,2]
[401101615,1767929446079,-151.0,0.00017995,2]
[401101617,1767929446088,-1158.833905,0.00017995,2]
[401101618,1767929446097,-1158.833905,0.00017995,2]
[401101619,1767929446107,-2570.137715,0.00017995,2]
[401101620,1767929446120,-1158.833905,0.00017995,2]
[401101621,1767929446130,-2570.137715,0.00017995,2]
[401101622,1767929446140,-1158.833905,0.00017995,2]
[401101623,1767929446150,-2570.137715,0.00017995,2]
[401101624,1767929446159,-2570.137715,0.00017995,2]
[401101625,1767929446169,-151.0,0.00017995,2]
[401101626,1767929446179,-159.700851,0.00017995,2]
[401101627,1767929446188,-151.0,0.00017995,2]
[401101628,1767929446197,-151.0,0.00017995,2]
[401101629,1767929446207,-151.0,0.00017995,2]
[401101630,1767929446216,-151.0,0.00017995,2]
[401101631,1767929446226,-157.480071,0.00017995,2]
[401101632,1767929446236,-151.0,0.00017995,2]
[401101633,1767929446246,-151.0,0.00017995,2]
[401101634,1767929446256,-157.860901,0.00017995,2]
[401101635,1767929446266,-171.241574,0.00017995,2]
[401101636,1767929446276,-5133.456017,0.00017995,2]
[401101637,1767929446286,-5133.456017,0.00017995,2]
[401101638,1767929446296,-182.163569,0.00017995,2]
[401101639,1767929446306,-5133.456017,0.00017995,2]
[401101640,1767929446319,-344.975399,0.00017995,2]
[401101641,1767929446329,-5133.456017,0.00017995,2]
[401101642,1767929446339,-571.784048,0.00017995,2]
[401101643,1767929446348,-151.0,0.00017995,2]
[401101644,1767929446360,-344.975399,0.00017995,2]
[401101645,1767929446371,-571.784048,0.00017995,2]
[401101646,1767929446381,-151.0,0.00017995,2]
[401101647,1767929446392,-240.887133,0.00017995,2]
[401101648,1767929446402,-159.367045,0.00017995,2]
[401101649,1767929446412,-571.784048,0.00017995,2]
[401101650,1767929446422,-344.975399,0.00017995,2]
[401101651,1767929446434,-251.826954,0.00017995,2]
[401101652,1767929446444,-151.0,0.00017995,2]
[401101653,1767929446455,-503.155209,0.00017995,2]
[401101654,1767929446466,-240.887133,0.00017995,2]
[401101655,1767929446476,-344.975399,0.00017995,2]
[401101656,1767929446486,-571.784048,0.00017995,2]
[401101657,1767929446495,-503.155209,0.00017995,2]
[401101658,1767929446506,-240.887133,0.00017995,2]
[401101659,1767929446518,-230.87744341,0.00017995,2]
[401101660,1767929446528,-503.155209,0.00017995,2]
[401101661,1767929446538,-240.887133,0.00017995,2]
[401101662,1767929446548,-557.058055,0.00017995,2]
[401101663,1767929446558,-1875.224678,0.00017995,2]
[401101664,1767929446568,-503.155209,0.00017995,2]
[401101665,1767929446578,-557.058055,0.00017995,2]
[401101666,1767929446587,-5057.2668974,0.00017996,2]
[401101668,1767929446597,-828.04278784,0.00017999,2]
[401101669,1767929446607,-300.0,0.00017999,2]
[401101670,1767929446617,-300.0,0.00017999,2]
[401101671,1767929446627,-300.0,0.00017999,2]
[401101672,1767929446637,-500.0,0.00017999,2]
[401101673,1767929446647,-500.0,0.00017999,2]
[401101674,1767929446657,-500.0,0.00017999,2]
[401101675,1767929446667,-500.0,0.00017999,2]
[401101676,1767929446676,-500.0,0.00017999,2]
[401101677,1767929446686,-370.00714586,0.00017999,2]
[401101678,1767929446695,-300.0,0.00017999,2]
[401101679,1767929446707,-542.95517596,0.00017999,2]
[401101680,1767929446717,-300.0,0.00017999,2]
[401101681,1767929446726,-666.0,0.00017999,2]
[401101682,1767929446736,-222.98699471,0.00017999,2]
[401101683,1767929446745,-11541.22312061,0.00017999,2]
[401101684,1767929446755,-300.0,0.00017999,2]
[401101685,1767929446764,-150.0,0.00017999,2]
[401101686,1767929446773,-300.0,0.00017999,2]
[401101687,1767929446783,-666.0,0.00017999,2]
[401101688,1767929446793,-300.0,0.00017999,2]
[401101689,1767929446802,-183.8943423,0.00017999,2]
[401101690,1767929446812,-480091.89996325,0.00018,2]
[401101691,1767929447684,-292.8221944,0.00018,2]
[401101692,1767929448029,-964.5,0.00017041,2]
[401101693,1767929448038,-367.98545983,0.00017895,2]
[401101694,1767929448047,-1875.224678,0.00017995,2]
[401101695,1767929448056,-151.0,0.00017995,2]
[401101696,1767929448065,-557.058055,0.00017995,2]
[401101697,1767929448074,-55.02967471,0.00017995,2]
[401101698,1767929465050,240.67541373,0.000226,120]
[401101699,1767929535383,500.0,0.000176,30]
[401101700,1767929542880,362.7689052,0.000176,30]
[401101701,1767929568234,1916.0,0.000202,30]
[401101702,1767929594838,3000.0,0.00010484,2]
[401101703,1767929711090,330.1524854,0.000226,120]
[401101704,1767929995523,168.99078744,0.00014,3]
[401101918,1767930639705,-200.0,0.00013928,2]
[401101921,1767930639715,-859.99,0.00013979,2]
[401101923,1767930639724,-819.324,0.0001427,2]
[401101924,1767930639734,-279.4840093,0.0001436,2]
[401101927,1767930639743,-187.03484206,0.00014361,2]
[401101929,1767930639752,-1200.0,0.0001446,2]
[401101930,1767930639761,-1000000.0,0.00014461,2]
[401101932,1767930639771,-290.7727,0.00014461,2]
[401101934,1767930639781,-3270.08693121,0.00014551,2]
[401101937,1767930639790,-300.0,0.00014552,2]
[401101938,1767930639800,-200.0,0.00014553,2]
[401101941,1767930639809,-151.0,0.00014553,2]
[401101943,1767930639819,-151.0,0.00014553,2]
[401101944,1767930639828,-151.0,0.00014553,2]
[401101946,1767930639837,-151.0,0.00014553,2]
[401101948,1767930639846,-151.0,0.00014553,2]
[401101950,1767930639856,-151.0,0.00014553,2]
[401101953,1767930639865,-151.0,0.00014553,2]
[401101954,1767930639875,-151.0,0.00014553,2]
[401101957,1767930639884,-151.0,0.00014553,2]
[401101959,1767930639893,-151.0,0.00014553,2]
[401101961,1767930639903,-151.0,0.00014553,2]
[401101963,1767930639912,-151.0,0.00014553,2]
[401101965,1767930639921,-2192.09587902,0.00014558,2]
[401101967,1767930639931,-5977.60630761,0.00014558,2]
[401101969,1767930639940,-150.0,0.00014559,2]
[401101971,1767930639951,-500.0,0.00014559,2]
[401101973,1767930639960,-500.0,0.00014559,2]
[401101975,1767930639969,-500.0,0.00014559,2]
[401101977,1767930639978,-263.94326943,0.00014559,2]
[401101979,1767930639987,-229.48113125,0.00014561,2]
[401101981,1767930639996,-500.0,0.00014561,2]
[401101983,1767930640006,-500.0,0.00014561,2]
[401101986,1767930640016,-500.0,0.00014561,2]
[401101989,1767930640028,-500.0,0.00014561,2]
[401101991,1767930640037,-511.94601024,0.00014561,2]
[401101993,1767930640046,-500.0,0.00014561,2]
[401101995,1767930640055,-500.0,0.00014561,2]
[401101997,1767930640066,-500.0,0.00014561,2]
[401101999,1767930640075,-500.0,0.00014561,2]
[401102001,1767930640084,-506.80096017,0.00014561,2]
[401102003,1767930640095,-513.74868065,0.00014561,2]
[401102005,1767930640104,-500.0,0.00014561,2]
[401102007,1767930640113,-500.0,0.00014561,2]
[401102009,1767930640122,-500.0,0.00014561,2]
[401102011,1767930640131,-500.0,0.00014561,2]
[401102012,1767930640140,-500.0,0.00014561,2]
[401102014,1767930640149,-500.0,0.00014561,2]
[401102016,1767930640159,-504.23210623,0.00014561,2]
[401102019,1767930640168,-387.93960788,0.00014561,2]
[401102021,1767930640177,-512.95474933,0.00014561,2]
[401102023,1767930640186,-506.04284897,0.00014561,2]
[401102025,1767930640195,-508.33302413,0.00014561,2]
[401102027,1767930640205,-588.84,0.00014561,2]
[401102028,1767930640215,-150.0,0.00014658,2]
[401102030,1767930640224,-221.75382643,0.00014658,2]
[401102033,1767930640234,-500.0,0.00014661,2]
[401102035,1767930640243,-500.0,0.00014661,2]
[401102037,1767930640252,-500.0,0.00014661,2]
[401102039,1767930640261,-500.0,0.0001471,2]
[401102040,1767930640270,-150.0,0.0001471,2]
[401102042,1767930640280,-156.60915998,0.00014713,2]
[401102044,1767930640289,-500.0,0.00014763,2]
[401102046,1767930640298,-500.0,0.00014763,2]
[401102048,1767930640307,-500.0,0.00014763,2]
[401102050,1767930640317,-501.53286712,0.00014763,2]
[401102052,1767930640326,-500.0,0.00014763,2]
[401102055,1767930640335,-504.58722527,0.00014763,2]
[401102057,1767930640345,-504.30057619,0.00014763,2]
[401102059,1767930640354,-500.0,0.00014763,2]
[401102060,1767930640363,-500.0,0.00014763,2]
[401102062,1767930640372,-500.0,0.00014763,2]
[401102065,1767930640382,-500.0,0.00014763,2]
[401102066,1767930640391,-500.0,0.00014763,2]
[401102069,1767930640401,-500.0,0.00014763,2]
[401102071,1767930640411,-500.0,0.00014763,2]
[401102073,1767930640420,-502.14927888,0.00014763,2]
[401102075,1767930640430,-503.2370208,0.00014763,2]
[401102077,1767930640439,-500.0,0.00014765,2]
[401102079,1767930640449,-150.0,0.00014765,2]
[401102081,1767930640458,-360.53466497,0.0001482,2]
[401102082,1767930640468,-150.0,0.0001482,2]
[401102084,1767930640477,-588.84,0.00014835,2]
[401102087,1767930640488,-150.0,0.00014874,2]
[401102089,1767930640497,-2192.09587896,0.00014929,2]
[401102091,1767930640507,-5977.60630752,0.00014929,2]
[401102093,1767930640516,-1097.63,0.00014984,2]
[401102095,1767930640525,-588.84,0.00015109,2]
[401102097,1767930640535,-1389.57,0.00015285,2]
[401102099,1767930640544,-2192.09587896,0.00015301,2]
[401102101,1767930640553,-5977.60630752,0.00015301,2]
[401102103,1767930640562,-166.86277605,0.0001531,2]
[401102105,1767930640574,-1000.0,0.0001531,2]
[401102107,1767930640584,-500.93632918,0.0001531,2]